bitfinex/quotes_ETHUSD_20250129
["timestamp","ask_amount","ask_price","bid_price","bid_amount"]
[1738162302423,3.563601,3086.8,3085.6,1.2262]
[1738162302614,3.24052,3086.0,3085.7,0.07123592]
[1738162302965,3.24065,3085.8,3085.7,0.07123592]
[1738162303437,3.24065,3085.8,3085.1,0.7372]
[1738162303654,3.24094,3085.6,3085.2,0.07153565]
[1738162303800,3.24117,3085.3,3085.2,0.07153565]
[1738162303995,3.2408,3085.7,3085.2,0.07153565]
[1738162304237,3.24025,3086.2,3085.1,0.7372]
[1738162304452,3.24127,3085.3,3085.2,0.07165556]
[1738162304618,3.24127,3085.3,3084.7,0.7372]
[1738162304952,3.24097,3085.5,3084.8,3.31355541]
[1738162305301,3.24097,3085.5,3084.8,3.31356541]
[1738162305503,3.24122,3085.3,3084.8,3.31356541]
[1738162305944,3.24097,3085.5,3084.8,3.31356541]
[1738162306149,3.24108,3085.4,3084.8,3.31356541]
[1738162306353,3.2408,3085.7,3084.9,0.03241027]
[1738162306649,7.52645757,3086.7,3085.4,0.7372]
[1738162306827,3.24094,3085.6,3085.5,0.07164179]
[1738162307023,3.24094,3085.6,3085.0,0.7372]
[1738162307225,4.28670757,3086.3,3085.1,0.071817]
[1738162307551,3.24105,3085.5,3085.1,0.10422725]
[1738162307746,3.24076,3085.7,3085.1,0.10422725]
[1738162307949,3.24076,3085.7,3085.1,3.313127]
[1738162308151,3.24056,3085.9,3085.1,0.071817]
[1738162308350,3.24034,3086.1,3085.3,3.24114]
[1738162308552,3.24062,3085.9,3085.3,3.24114]
[1738162308716,3.24108,3085.4,3085.1,0.071817]
[1738162308922,3.24094,3085.6,3085.0,2.7372]
[1738162309275,3.24027,3086.2,3085.5,2.0]
[1738162309431,6.803271,3086.8,3086.1,3.24026]
[1738162309625,3.23963,3086.8,3086.1,3.24026]
[1738162309818,0.647904,3086.8,3086.0,2.0]
[1738162310046,3.24038,3086.1,3085.6,0.7372]
[1738162310467,1.45147521,3087.3,3085.7,0.03240265]
[1738162310667,3.23952,3086.9,3086.3,5.97728]
[1738162310972,3.23952,3086.9,3086.3,0.7372]
[1738162311133,3.23932,3087.1,3086.5,3.23984]
[1738162311319,6.47869,3087.1,3086.5,3.23984]
[1738162311940,3.23954,3086.9,3086.4,3.23995]
[1738162312239,0.647886,3086.9,3086.3,0.7372]
[1738162312582,0.647886,3086.9,3085.8,2.0]
[1738162312583,3.24044,3086.0,3085.8,2.0]
[1738162312783,3.24054,3085.9,3085.8,2.0]
[1738162312935,3.24039,3086.1,3085.8,2.0]
[1738162312936,6.48082,3086.1,3085.8,2.0]
[1738162313138,3.24039,3086.1,3085.5,0.7372]
[1738162313337,3.2406,3085.9,3085.2,2.488]
[1738162313587,3.24038,3086.1,3085.3,0.03240588]
[1738162313805,0.7986,3086.9,3085.3,0.03240588]
[1738162313806,6.48036,3086.3,3085.6,6.48159]
[1738162314082,3.24003,3086.4,3085.8,3.24059]
[1738162314231,3.24012,3086.3,3085.8,3.24059]
[1738162314437,3.23975,3086.7,3086.0,2.0]
[1738162314637,3.23975,3086.7,3086.0,5.24038]
[1738162314874,3.23975,3086.7,3086.1,3.24032]
[1738162315087,6.47954,3086.7,3086.1,3.24032]
[1738162315291,6.47954,3086.7,3086.0,5.24038]
[1738162315292,3.23931,3087.1,3086.0,2.0]
[1738162315440,3.24003,3086.4,3086.0,2.0]
[1738162316492,3.23968,3086.8,3086.0,5.24033]
[1738162316692,3.23939,3087.0,3086.0,5.24033]
[1738162316895,3.23985,3086.6,3086.1,3.24032]
[1738162317200,3.2395,3086.9,3086.4,3.23999]
[1738162317402,3.2392,3087.2,3086.6,3.23974]
[1738162317584,3.23899,3087.4,3086.8,3.23958]
[1738162317785,6.47803,3087.4,3086.8,3.23958]
[1738162318005,3.23882,3087.6,3087.0,3.23938]
[1738162318301,1.48406711,3088.3,3087.1,0.76958831]
[1738162318502,3.23892,3087.5,3087.1,0.7372]
[1738162318924,3.23869,3087.7,3087.1,0.7372]
[1738162319619,3.23903,3087.4,3087.1,0.7372]
[1738162320197,3.23918,3087.2,3087.1,0.7372]
[1738162320403,3.23939,3087.0,3086.7,0.7372]
[1738162320701,3.23931,3087.1,3086.7,0.7372]
[1738162320901,3.23945,3087.0,3086.8,0.07033241]
[1738162321205,3.23949,3086.9,3086.8,0.07033241]
[1738162321404,3.23949,3086.9,3085.6,3.24075]
[1738162321405,3.24031,3086.2,3085.5,5.24088]
[1738162321705,3.24049,3086.0,3085.6,0.06837966]
[1738162321905,3.24027,3086.2,3085.7,3.24069]
[1738162322230,6.23893,3087.5,3085.7,3.24069]
[1738162322231,3.23998,3086.5,3085.9,3.24052]
[1738162322366,3.23946,3087.0,3086.0,2.03239894]
[1738162322567,3.23961,3086.8,3086.0,5.30852994]
[1738162322928,3.24033,3086.1,3086.0,0.06813994]
[1738162323103,4.212402,3086.1,3086.0,0.06813994]
[1738162323265,3.24067,3085.8,3085.3,4.566]
[1738162323467,3.24067,3085.8,3085.4,0.06849955]
[1738162323468,6.4814,3085.8,3085.4,0.06849955]
[1738162323700,3.24067,3085.8,3085.3,7.80716]
[1738162323902,3.24036,3086.1,3085.5,3.3092996]
[1738162324207,3.24035,3086.1,3085.6,0.6875]
[1738162324406,3.24035,3086.1,3085.6,0.75587966]
[1738162324599,3.24075,3085.7,3085.6,0.06837966]
[1738162325412,3.24075,3085.7,3085.3,4.566]
[1738162325571,3.24055,3085.9,3085.6,0.06837966]
[1738162325772,3.24066,3085.8,3085.3,4.566]
[1738162325974,3.24055,3085.9,3085.7,0.06831972]
[1738162326308,3.24055,3085.9,3085.3,7.80716]
[1738162326309,3.2409,3085.6,3085.3,2.566]
[1738162326666,3.2407,3085.8,3085.3,2.566]
[1738162326987,3.24078,3085.7,3085.3,2.566]
[1738162327340,3.24107,3085.4,3085.3,2.566]
[1738162327830,3.24095,3085.6,3085.3,2.566]
[1738162328031,3.24016,3086.3,3085.4,0.71990866]
[1738162328195,3.24032,3086.2,3085.4,0.6875]
[1738162328398,3.24032,3086.2,3085.5,3.24088]
[1738162328798,3.24015,3086.3,3085.7,3.24068]
[1738162329017,3.24075,3085.7,3085.6,0.06908522]
[1738162329197,3.241,3085.5,3084.9,0.6875]
[1738162329396,3.24092,3085.6,3085.0,3.24145]
[1738162329597,3.24071,3085.8,3085.0,3.24142]
[1738162329813,3.24049,3086.0,3085.1,3.24129]
[1738162330011,3.24029,3086.2,3085.6,3.24077]
[1738162330423,3.23983,3086.6,3085.8,3.24057]
[1738162330606,3.23963,3086.8,3086.0,3.24037]
[1738162330810,3.23949,3086.9,3086.3,3.92753]
[1738162331064,3.2396,3086.8,3086.3,0.6875]
[1738162331652,3.23923,3087.2,3086.6,3.23974]
[1738162331840,0.8113,3088.1,3087.0,3.23935]
[1738162332039,0.8113,3088.1,3087.1,0.6875]
[1738162332040,3.23872,3087.7,3087.1,0.6875]
[1738162332349,4.29170757,3088.4,3087.4,3.23894]
[1738162332350,0.005,3088.4,3087.4,3.23894]
[1738162332550,3.23818,3088.2,3087.5,3.27117508]
[1738162332712,3.24293,3088.4,3087.8,3.23845]
[1738162332909,0.005,3088.4,3087.9,0.6875]
[1738162333314,3.24299,3088.4,3087.9,0.6875]
[1738162333832,3.24299,3088.4,3087.9,3.92592]
[1738162334029,0.005,3088.4,3088.2,3.2381]
[1738162334210,0.005,3088.4,3088.3,3.9578957]
[1738162334409,0.005,3088.4,3088.3,4.5078957]
[1738162334669,0.005,3088.4,3088.3,4.47552]
[1738162335210,0.005,3088.4,3088.3,4.5153908]
[1738162335631,0.005,3088.4,3088.3,4.48302]
[1738162335961,0.005,3088.4,3088.3,4.54893606]
[1738162336266,0.005,3088.4,3088.3,7.58880557]
[1738162336564,0.005,3088.4,3088.3,7.55643606]
[1738162336718,1e-05,3088.4,3088.3,7.55643606]
[1738162337062,3.23611,3090.2,3089.6,0.6875]
[1738162337291,0.52378137,3090.8,3089.7,0.09699248]
[1738162337292,3.39571,3090.6,3089.7,0.09699248]
[1738162337417,0.16007,3090.6,3090.0,3.23622]
[1738162337619,0.16007,3090.6,3090.3,3.23585]
[1738162337852,0.16007,3090.6,3090.4,0.0628491]
[1738162338057,0.16007,3090.6,3090.1,3.23612]
[1738162338058,0.16007,3090.6,3090.0,2.0]
[1738162338360,3.23611,3090.2,3090.1,0.06269711]
[1738162338859,3.23611,3090.2,3088.0,0.1]
[1738162338860,3.23697,3089.3,3088.8,0.6875]
[1738162339026,3.23697,3089.3,3088.9,0.06340537]
[1738162339227,0.64123413,3090.2,3088.9,3.30079537]
[1738162339434,0.64123413,3090.2,3089.0,2.0]
[1738162339435,3.23605,3090.2,3089.0,2.0]
[1738162339660,3.23579,3090.5,3089.9,2.55]
[1738162339873,3.23579,3090.5,3090.0,0.06274768]
[1738162340078,0.16007,3090.6,3090.1,0.55]
[1738162340224,0.16007,3090.6,3090.2,0.09498197]
[1738162340735,0.16007,3090.6,3090.2,0.06262815]
[1738162340938,0.499637,3090.6,3090.2,0.06262815]
[1738162341143,3.23593,3090.3,3090.2,0.06262815]
[1738162341351,3.3957,3090.6,3089.8,0.55]
[1738162341674,3.23592,3090.4,3089.8,0.55]
[1738162341977,3.23591,3090.4,3089.9,0.06280745]
[1738162342184,3.23573,3090.5,3089.9,0.06280745]
[1738162342513,3.23583,3090.4,3089.9,0.06280745]
[1738162342715,0.16007,3090.6,3090.0,2.58985776]
[1738162342855,0.16007,3090.6,3090.5,3.78572]
[1738162343059,0.16007,3090.6,3090.5,5.05501939]
[1738162343275,0.16007,3090.6,3090.5,5.00766888]
[1738162343523,0.16007,3090.6,3090.5,1.22194888]
[1738162343680,3.39568,3090.6,3090.5,0.53444888]
[1738162344201,0.16007,3090.6,3090.5,0.53444888]
[1738162344370,3.39568,3090.6,3090.5,0.53444888]
[1738162344769,3.39568,3090.6,3090.5,0.472]
[1738162345493,3.23645,3089.9,3089.5,0.6875]
[1738162345772,3.23615,3090.1,3089.6,0.06277062]
[1738162346006,3.23635,3089.9,3089.6,0.06277062]
[1738162346233,3.23656,3089.7,3089.6,0.06277062]
[1738162346396,3.23647,3089.8,3089.3,0.474]
[1738162346604,3.23647,3089.8,3089.6,0.06293619]
[1738162346806,3.23626,3090.0,3089.3,0.474]
[1738162346982,3.23626,3090.0,3089.7,0.06287641]
[1738162346983,3.23643,3089.9,3089.7,0.06287641]
[1738162347327,3.23643,3089.9,3089.3,0.474]
[1738162347328,3.23605,3090.2,3089.3,3.71094]
[1738162347534,3.23605,3090.2,3089.3,0.474]
[1738162347535,0.647192,3090.2,3089.3,0.474]
[1738162347734,3.23597,3090.3,3089.3,0.474]
[1738162347938,3.23644,3089.9,3089.2,2.0]
[1738162348112,3.23582,3090.4,3089.6,3.23664]
[1738162348279,0.16007,3090.6,3090.0,3.92369]
[1738162348481,0.16007,3090.6,3090.3,0.55]
[1738162348821,0.16007,3090.6,3090.0,0.6875]
[1738162348822,3.2358,3090.5,3090.0,0.6875]
[1738162349032,3.23596,3090.3,3090.0,0.6875]
[1738162349184,3.23596,3090.3,3089.6,0.6875]
[1738162349378,3.23582,3090.4,3089.7,3.79398]
[1738162349575,3.23612,3090.2,3089.7,0.5575]
[1738162349819,3.23647,3089.8,3089.6,0.473]
[1738162350136,3.23647,3089.8,3089.1,0.6875]
[1738162350419,3.23692,3089.4,3089.0,2.0]
[1738162350578,3.23676,3089.6,3089.0,2.0]
[1738162350981,3.2371,3089.2,3089.1,0.06289929]
[1738162351278,4.28670757,3090.0,3088.7,0.0075]
[1738162351505,3.23686,3089.5,3088.9,5.23739]
[1738162351687,3.23667,3089.6,3089.0,3.2372]
[1738162351897,4.28670757,3090.4,3089.0,3.2372]
[1738162351898,3.23632,3090.0,3089.4,3.92436]
[1738162352122,3.23601,3090.3,3089.5,0.0626601]
[1738162352436,3.23621,3090.1,3089.5,0.0626601]
[1738162352725,3.23592,3090.4,3089.8,3.23644]
[1738162352879,3.39575,3090.6,3089.9,0.55]
[1738162353074,3.39575,3090.6,3089.7,2.0]
[1738162353075,3.23589,3090.4,3089.7,2.0]
[1738162353274,3.23616,3090.1,3089.8,0.06248076]
[1738162353586,3.23665,3089.7,3089.0,5.92475]
[1738162353784,3.23654,3089.8,3089.1,3.2371]
[1738162353985,0.7834,3090.1,3089.2,0.5575]
[1738162353986,3.23637,3089.9,3089.2,0.5575]
[1738162354310,3.23595,3090.3,3089.3,3.23687]
[1738162354495,3.23595,3090.3,3089.2,0.5575]
[1738162354496,3.23595,3090.3,3089.7,0.55]
[1738162354821,3.23595,3090.3,3089.7,3.78655]
[1738162355026,0.16007,3090.6,3090.4,3.23582]
[1738162355192,0.16007,3090.6,3090.2,0.5575]
[1738162355529,0.16007,3090.6,3090.2,2.0]
[1738162355682,3.23573,3090.5,3090.0,3.23616]
[1738162355883,3.39576,3090.6,3090.0,3.23616]
[1738162356097,3.23584,3090.4,3089.9,3.5575]
[1738162356327,3.39568,3090.6,3089.9,3.5575]
[1738162356729,3.39568,3090.6,3089.9,6.23634]
[1738162356931,0.16007,3090.6,3089.9,3.0]
[1738162357112,0.16007,3090.6,3090.3,2.55]
[1738162357297,0.16007,3090.6,3090.3,2.0]
[1738162357922,0.16007,3090.6,3090.4,0.55]
[1738162358357,0.16007,3090.6,3090.2,3.23602]
[1738162358559,0.16007,3090.6,3090.1,3.23609]
[1738162358829,3.39569,3090.6,3090.1,3.23609]
[1738162359030,0.16007,3090.6,3090.1,3.78613]
[1738162359250,0.16007,3090.6,3090.2,3.23601]
[1738162359464,0.16007,3090.6,3090.4,5.23575]
[1738162359625,0.16007,3090.6,3090.5,7.48822]
[1738162360047,0.16007,3090.6,3090.5,4.2375]
[1738162360260,0.16007,3090.6,3090.4,2.464]
[1738162360452,0.16007,3090.6,3090.5,0.55]
[1738162360822,0.16007,3090.6,3090.4,2.464]
[1738162361886,0.16007,3090.6,3090.4,5.69979]
[1738162362089,0.16007,3090.6,3090.4,5.6998]
[1738162362544,0.16007,3090.6,3090.4,2.464]
[1738162362747,0.16007,3090.6,3090.4,2.0]
[1738162362973,3.23578,3090.5,3090.0,3.92373]
[1738162363188,0.16007,3090.6,3090.1,3.2361]
[1738162363346,0.16007,3090.6,3090.5,3.23572]
[1738162363981,0.16007,3090.6,3090.5,0.0075]
[1738162364188,0.16007,3090.6,3090.5,3.79322]
[1738162364485,0.16007,3090.6,3090.5,3.80072]
[1738162364695,0.16007,3090.6,3090.5,38.80072]
[1738162364863,0.16007,3090.6,3090.5,42.48822]
[1738162365989,0.16007,3090.6,3090.5,42.54989609]
[1738162366286,0.16007,3090.6,3090.5,42.60906358]
[1738162367646,0.8077,3091.8,3091.0,2.0]
[1738162367851,0.7973,3092.5,3091.5,2.0]
[1738162368071,3.23366,3092.5,3091.7,3.23437]
[1738162368285,3.23366,3092.5,3091.6,1.05133967]
[1738162368286,3.0,3092.8,3091.6,0.52974871]
[1738162368443,3.23425,3091.9,3091.8,0.0606293]
[1738162368648,3.23436,3091.8,3091.2,5.70398]
[1738162368858,4.01029,3092.1,3091.5,3.23466]
[1738162369280,3.23416,3092.0,3091.6,0.06066049]
[1738162369493,3.23416,3092.0,3091.3,35.0]
[1738162369494,3.23416,3092.0,3091.3,38.23485]
[1738162369694,3.2345,3091.7,3091.4,0.06077991]
[1738162369997,0.7762,3092.1,3091.1,4.39253]
[1738162369998,3.23458,3091.6,3091.1,0.47]
[1738162370202,6.46924,3091.6,3091.5,0.0607202]
[1738162370405,6.46924,3091.6,3091.1,0.47]
[1738162370406,3.23458,3091.6,3091.1,0.47]
[1738162370591,3.0,3092.3,3091.7,3.23443]
[1738162370592,3.23401,3092.2,3091.7,3.23443]
[1738162370795,3.23387,3092.3,3091.6,2.6875]
[1738162371113,0.7686,3092.5,3091.9,3.23423]
[1738162371311,0.7686,3092.5,3092.0,0.05998036]
[1738162371510,3.23404,3092.1,3091.7,35.0]
[1738162371720,0.7686,3092.5,3091.8,2.61759975]
[1738162371861,4.00227,3092.5,3091.8,0.06009975]
[1738162372061,3.23404,3092.1,3091.8,0.06009975]
[1738162372281,3.23404,3092.1,3091.7,35.0]
[1738162372715,3.23404,3092.1,3091.8,0.0599527]
[1738162372923,3.99691,3092.9,3092.1,2.0]
[1738162373215,0.7637,3092.9,3092.1,2.0]
[1738162373361,6.46697,3092.7,3092.2,0.05971393]
[1738162373566,3.23347,3092.7,3092.2,0.05971393]
[1738162373815,3.23347,3092.7,3092.2,3.29364393]
[1738162374110,3.23354,3092.6,3092.2,0.05971393]
[1738162374288,3.23347,3092.7,3091.9,40.92169]
[1738162374597,3.23331,3092.8,3092.2,3.23388]
[1738162374765,0.7637,3092.9,3092.2,3.23388]
[1738162374965,0.7637,3092.9,3092.3,0.05944751]
[1738162375198,0.7637,3092.9,3092.4,3.23372]
[1738162375425,3.23306,3093.1,3092.6,3.23349]
[1738162375564,3.23338,3092.8,3092.5,0.05911765]
[1738162375757,3.23342,3092.7,3092.1,3.234]
[1738162375962,3.23323,3092.9,3092.3,3.23382]
[1738162376215,6.46615,3093.1,3092.5,3.23359]
[1738162376440,6.46615,3093.1,3092.3,5.23382]
[1738162376441,3.23321,3092.9,3092.3,5.23382]
[1738162376633,3.23321,3092.9,3092.4,3.23372]
[1738162376791,3.23321,3092.9,3092.3,2.0]
[1738162376997,3.23321,3092.9,3092.4,3.2337]
[1738162377318,3.23338,3092.8,3092.2,3.23386]
[1738162377818,3.23338,3092.8,3092.1,3.23399]
[1738162377819,3.23325,3092.9,3092.3,3.23383]
[1738162378222,3.23312,3093.0,3092.5,3.23362]
[1738162378404,3.23306,3093.1,3092.5,3.23354]
[1738162379036,3.23311,3093.0,3092.5,3.23354]
[1738162379618,4.02372,3093.2,3092.5,3.23354]
[1738162379825,4.02372,3093.2,3092.6,3.23346]
[1738162379987,3.23301,3093.1,3092.6,3.23346]
[1738162380413,0.7908,3093.2,3092.5,3.23362]
[1738162380584,3.23774,3093.4,3092.8,3.23324]
[1738162381051,0.005,3093.4,3093.1,3.23296]
[1738162381204,0.005,3093.4,3093.0,3.233]
[1738162381407,0.005,3093.4,3093.2,0.05849001]
[1738162381623,0.005,3093.4,3093.3,3.78279]
[1738162381837,0.005,3093.4,3093.3,9.53570725]
[1738162382450,0.005,3093.4,3093.3,9.59482118]
[1738162382935,0.005,3093.4,3093.3,9.60232118]
[1738162383141,5.5e-06,3093.7,3093.6,11.0998315]
[1738162383488,5.5e-06,3093.7,3093.6,14.17746897]
[1738162383687,5.5e-06,3093.7,3093.6,14.23657717]
[1738162383882,5.5e-06,3093.7,3093.6,49.23657717]
[1738162384321,5.5e-06,3093.7,3093.6,45.62171567]
[1738162384492,5.5e-06,3093.7,3093.6,10.61421567]
[1738162384896,5.5e-06,3093.7,3093.6,10.62171567]
[1738162385138,5.5e-06,3093.7,3093.6,14.23657717]
[1738162386129,5.5e-06,3093.7,3093.6,49.33657717]
[1738162386695,5.5e-06,3093.7,3093.6,49.43657717]
[1738162387091,5.5e-06,3093.7,3093.6,48.77657717]
[1738162387322,5.5e-06,3093.7,3093.6,49.23557717]
[1738162387494,5.5e-06,3093.7,3093.6,10.07071567]
[1738162387693,5.5e-06,3093.7,3093.6,13.68557717]
[1738162387891,5.5e-06,3093.7,3093.6,14.23557717]
[1738162388126,5.5e-06,3093.7,3093.6,10.07071567]
[1738162388536,5.5e-06,3093.7,3093.6,10.62071567]
[1738162388736,4.00342,3094.8,3094.2,2.0]
[1738162389031,3.23135,3094.7,3094.2,2.0]
[1738162389233,3.23135,3094.7,3094.3,0.05607691]
[1738162389638,3.23135,3094.7,3094.2,2.0]
[1738162389806,3.23153,3094.5,3094.4,0.05601732]
[1738162390011,3.23153,3094.5,3094.0,3.0]
[1738162390012,3.23153,3094.5,3094.3,0.05607691]
[1738162390207,3.23133,3094.7,3094.4,0.05601732]
[1738162390415,0.7722,3094.8,3094.4,0.05601732]
[1738162390598,3.23101,3095.0,3094.5,3.78147]
[1738162390933,3.23093,3095.1,3094.5,3.83736352]
[1738162391312,3.23102,3095.0,3094.5,0.60589352]
[1738162391723,3.2313,3094.8,3094.5,0.05589352]
[1738162391923,3.2313,3094.8,3094.3,0.55]
[1738162392242,3.23093,3095.1,3094.5,0.55]
[1738162392441,3.23036,3095.7,3094.4,3.28750182]
[1738162392442,0.8115,3095.7,3094.8,0.0075]
[1738162392610,0.64874823,3096.0,3095.3,0.55]
[1738162392821,4.04135,3096.2,3095.5,0.6875]
[1738162393147,3.22966,3096.3,3095.9,0.55]
[1738162393353,3.22966,3096.3,3095.6,2.05453513]
[1738162393354,3.2298,3096.2,3095.6,2.05453513]
[1738162393670,3.2298,3096.2,3095.1,0.0075]
[1738162393671,3.22994,3096.1,3096.0,0.05429699]
[1738162393953,3.23039,3095.6,3095.1,0.6875]
[1738162394133,3.23041,3095.6,3095.0,2.0]
[1738162394639,3.1807,3095.3,3094.6,5.91892]
[1738162394797,3.1807,3095.3,3094.6,2.6875]
[1738162395136,3.1807,3095.3,3094.7,3.23131]
[1738162395339,3.1807,3095.3,3094.6,2.6875]
[1738162395635,3.1807,3095.3,3094.6,5.9189]
[1738162395852,3.1807,3095.3,3094.7,3.23132]
[1738162396052,3.1807,3095.3,3095.2,0.5093928]
[1738162396206,3.23,3096.0,3095.4,2.0]
[1738162396541,3.22964,3096.4,3095.9,3.23007]
[1738162396696,0.7939,3096.7,3096.1,3.22985]
[1738162396901,3.3892755,3096.8,3096.2,3.83302767]
[1738162397125,3.22925,3096.7,3096.2,3.83302767]
[1738162397523,0.1600755,3096.8,3096.2,3.83302767]
[1738162397733,3.3892755,3096.8,3096.2,3.83302767]
[1738162398038,0.1600755,3096.8,3096.5,0.55]
[1738162398243,0.1600755,3096.8,3096.2,2.05328767]
[1738162398540,3.22933,3096.7,3096.2,2.0]
[1738162398716,3.22945,3096.6,3096.3,0.60348889]
[1738162399042,0.1600755,3096.8,3096.3,0.60348889]
[1738162399240,3.22931,3096.7,3096.3,0.60348889]
[1738162399600,3.22936,3096.6,3096.3,0.60348889]
[1738162399834,3.22931,3096.7,3096.3,0.60348889]
[1738162400238,3.22951,3096.5,3096.3,0.05348889]
[1738162400427,3.3892455,3096.8,3096.3,3.83311889]
[1738162400626,3.3892455,3096.8,3096.3,0.60348889]
[1738162401016,3.22935,3096.6,3096.3,0.60348889]
[1738162401212,3.22955,3096.4,3096.3,0.05348889]
[1738162401413,0.7648,3096.5,3096.3,0.05348889]
[1738162401614,0.1600755,3096.8,3096.2,2.0]
[1738162401820,0.1600755,3096.8,3096.4,3.28297724]
[1738162402043,0.1600755,3096.8,3096.7,5.77924]
[1738162402243,0.1600755,3096.8,3096.7,2.58978565]
[1738162402413,0.1600755,3096.8,3096.7,0.05279869]
[1738162402746,3.3892055,3096.8,3096.4,0.05905475]
[1738162402906,3.22924,3096.7,3096.4,0.05905475]
[1738162404525,3.22945,3096.5,3096.4,0.05905475]
[1738162404707,3.22987,3096.1,3095.6,3.23038]
[1738162404912,3.22997,3096.0,3095.5,2.0]
[1738162405134,3.22984,3096.2,3095.5,5.23047]
[1738162405333,3.22987,3096.1,3095.5,5.23047]
[1738162405533,3.23004,3096.0,3095.5,2.0]
[1738162405717,0.7603,3095.8,3095.1,2.559]
[1738162405940,3.23052,3095.5,3095.1,2.559]
[1738162406154,3.23046,3095.6,3095.1,2.559]
[1738162406870,0.7739,3096.4,3095.8,0.55]
[1738162407187,3.23017,3095.9,3095.3,3.92566]
[1738162407324,3.23032,3095.7,3095.2,2.05907765]
[1738162407741,3.23039,3095.6,3095.2,2.05907765]
[1738162407962,0.7739,3095.8,3095.2,0.05907765]
[1738162408260,3.23066,3095.4,3095.2,0.05907765]
[1738162408460,3.23058,3095.5,3095.2,0.05907765]
[1738162408861,4.00413,3095.8,3095.2,0.05907765]
[1738162408862,3.23062,3095.4,3095.2,0.05907765]
[1738162409040,3.23041,3095.6,3095.2,0.05907765]
[1738162409240,3.23026,3095.8,3095.2,0.05907765]
[1738162409439,3.23051,3095.5,3095.2,0.05907765]
[1738162409845,3.5855577,3095.8,3095.2,0.05907765]
[1738162410175,3.23023,3095.8,3095.2,3.28987765]
[1738162410465,3.22977,3096.2,3095.5,3.23042]
[1738162410672,3.22999,3096.0,3095.6,0.55]
[1738162410853,3.22984,3096.2,3095.6,0.55]
[1738162411043,3.23005,3096.0,3095.7,0.0501096]
[1738162411442,3.2296,3096.4,3095.7,3.23019]
[1738162411770,3.22967,3096.3,3095.8,0.08234765]
[1738162411939,3.98917,3096.5,3095.9,3.23005]
[1738162412140,3.98917,3096.5,3096.0,0.08216728]
[1738162412347,3.22967,3096.3,3096.0,0.04987154]
[1738162412585,3.22967,3096.3,3095.8,3.23018]
[1738162412782,3.98917,3096.5,3096.1,0.04980743]
[1738162413075,0.1600755,3096.8,3096.3,3.22964]
[1738162413240,0.1600755,3096.8,3096.4,3.22948]
[1738162413445,3.22925,3096.7,3096.4,0.04949172]
[1738162413952,3.22925,3096.7,3096.5,0.04928597]
[1738162414154,3.22962,3096.4,3096.1,2.0]
[1738162414545,3.22962,3096.4,3096.2,0.04946454]
[1738162414875,0.66184355,3096.7,3096.2,0.04946454]
[1738162415074,3.22986,3096.1,3095.7,2.0]
[1738162415228,3.22986,3096.1,3095.4,3.0]
[1738162415433,3.2307,3095.3,3095.1,2.559]
[1738162415979,3.23062,3095.4,3095.1,2.559]
[1738162416145,3.2308,3095.2,3094.5,0.6875]
[1738162416347,0.8032,3095.5,3094.7,2.0]
[1738162416546,4.03374,3095.5,3094.8,0.03230683]
[1738162416733,3.23031,3095.7,3094.8,0.0075]
[1738162417071,3.23049,3095.5,3094.9,3.78107]
[1738162417272,3.23049,3095.5,3094.9,0.55]
[1738162417474,3.23031,3095.7,3095.1,3.23084]
[1738162417675,3.23031,3095.7,3095.1,3.23089]
[1738162417859,3.98291,3095.9,3095.2,0.03230438]
[1738162418045,3.98291,3095.9,3095.3,3.23061]
[1738162418246,3.98291,3095.9,3095.4,3.23057]
[1738162418451,3.2299,3096.1,3095.4,0.55]
[1738162418663,3.23003,3096.0,3095.4,3.7805]
[1738162418876,3.23003,3096.0,3095.4,3.2305]
[1738162419075,3.23018,3095.8,3095.1,5.23089]
[1738162419273,3.23018,3095.8,3094.7,3.2313]
[1738162419274,3.23082,3095.2,3094.7,3.2313]
[1738162419586,3.23072,3095.3,3094.7,3.23131]
[1738162419784,4.00393,3095.4,3094.7,3.23131]
[1738162420291,3.23087,3095.2,3094.7,3.23131]
[1738162420488,3.23087,3095.2,3094.5,3.23149]
[1738162420687,3.23087,3095.2,3094.6,3.78143]
[1738162421004,7.23462,3095.4,3094.8,3.23121]
[1738162421165,7.23462,3095.4,3094.7,0.05103447]
[1738162421166,3.23122,3094.8,3094.7,0.05103447]
[1738162421385,3.23102,3095.0,3094.7,0.05103447]
[1738162421585,3.23082,3095.2,3094.4,3.23157]
[1738162421800,4.00392,3095.4,3094.8,0.05097489]
[1738162422000,3.23042,3095.6,3095.0,3.231]
[1738162422201,3.23057,3095.5,3094.9,3.2822448]
[1738162422407,3.23053,3095.5,3095.1,0.05101565]
[1738162422631,3.23072,3095.3,3095.0,0.05107979]
[1738162422930,3.23062,3095.4,3095.2,0.05096065]
[1738162423137,3.2308,3095.2,3095.1,0.05102022]
[1738162423272,3.2308,3095.2,3094.4,3.23156]
[1738162423273,3.23108,3095.0,3094.4,3.23156]
[1738162423474,3.23121,3094.9,3094.4,3.0]
[1738162423726,3.23124,3094.8,3094.3,3.23165]
[1738162424040,0.04038814,3094.7,3094.0,2.0]
[1738162424176,3.23195,3094.2,3093.6,5.23238]
[1738162424505,3.23195,3094.2,3093.7,3.0]
[1738162424885,0.7708,3094.3,3093.7,3.0]
[1738162425104,4.00258,3094.3,3093.6,5.23238]
[1738162425280,0.7708,3094.3,3093.6,5.23238]
[1738162425475,3.2319,3094.2,3093.6,5.23238]
[1738162425670,3.23196,3094.1,3093.6,5.23238]
[1738162426111,3.2319,3094.2,3093.7,0.05185461]
[1738162426915,3.23227,3093.8,3093.7,0.05185461]
[1738162427213,3.23244,3093.7,3093.2,2.558]